[Event "7th Cesme Open-A 2019"]
[Site "Cesme"]
[Date "2019.06.30"]
[Round "9"]
[White "Guseynov, Alihan"]
[Black "Ozenir, Ekin Baris"]
[Result "1-0"]
[ECO "E32"]
[WhiteElo "2274"]
[BlackElo "2250"]
[Annotator "NA"]
[PlyCount "69"]
[EventDate "2019.06.24"]
[EventType "swiss"]
[EventCountry "TUR"]
[SourceTitle "playchess.com"]
[Source "ChessBase"]
[SourceQuality "1"]
[TimeControl "5400+30"]

1. d4 {[%emt 0:01:30]} Nf6 {[%emt 0:00:30]} 2. c4 {[%emt 0:00:00]} e6 {[%emt 0:00:30]} 3. Nc3 {[%emt 0:00:00]} Bb4 {[%emt 0:00:00]} 4. Qc2 {[%emt 0:01:30]} O-O {[%emt 0:00:00]} 5. e4 {[%emt 0:00:00]} d6 {[%emt 0:01:30]} 6. Bd3 {[%emt 0:15:00]} e5 {[%emt 0:08:30]} 7. d5 {[%emt 0:08:30]} a5 {[%emt 0:03:30]} 8. Nge2 {[%emt 0:05:30]} Na6 {[%emt 0:02:30]} 9. h3 {[%emt 0:05:30]} Nh5 {[%emt 0:11:30]} 10. g4 {[%emt 0:08:30]} Nf6 {[%emt 0:20:30]} 11. Ng3 {[%emt 0:03:30]} Nc5 {[%emt 0:03:30]} 12. a3 {[%emt 0:13:30]} Bxc3+ {[%emt 0:06:30]} 13. Qxc3 {[%emt 0:00:30]} c6 {[%emt 0:00:30]} 14. Bc2 {[%emt 0:07:30]} cxd5 {[%emt 0:03:30]} 15. cxd5 {[%emt 0:03:30]} Bd7 {[%emt 0:01:30]} 16. O-O {[%emt 0:06:12]} Rc8 {[%emt 0:04:30]} 17. Qf3 {[%emt 0:01:49]} Ne8 {[%emt 0:05:30]} 18. Nf5 {[%emt 0:06:18]} g6 {[%emt 0:04:59]} 19. Bh6 {[%emt 0:05:30]} gxf5 {[%emt 0:10:37]} 20. gxf5 {[%emt 0:00:02]} Qf6 {[%emt 0:01:42]} 21. Qg4+ {[%emt 0:04:38]} Kh8 {[%emt 0:02:10]} 22. Bxf8 {[%emt 0:00:04]} Nc7 {[%emt 0:00:00]} 23. Bxd6 {[%emt 0:00:25]} Qxd6 {[%emt 0:04:22]} 24. Kh2 {[%emt 0:01:17]} a4 {[%emt 0:01:42]} 25. Rg1 {[%emt 0:00:35]} Qh6 {[%emt 0:00:54]} 26. Rg3 {[%emt 0:00:09]} Qf6 {[%emt 0:01:31]} 27. Rag1 {[%emt 0:00:12]} h6 {[%emt 0:00:28]} 28. f4 {[%emt 0:01:42]} exf4 {[%emt 0:00:34]} 29. Qxf4 {[%emt 0:00:10]} Nxd5 {[%emt 0:00:30]} 30. exd5 {[%emt 0:00:13]} Nb3 {[%emt 0:00:36]} 31. Bxb3 {[%emt 0:00:30]} axb3 {[%emt 0:00:00]} 32. Rg6 {[%emt 0:01:13]} Rc2+ {[%emt 0:00:54]} 33. Kh1 {[%emt 0:00:14]} fxg6 {[%emt 0:00:30]} 34. Qxh6+ {[%emt 0:00:33]} Kg8 {[%emt 0:00:30]} 35. Rxg6+ {[%emt 0:00:00]} 1-0

[Event "7th Cesme Open-A 2019"]
[Site "Cesme"]
[Date "2019.06.30"]
[Round "9"]
[White "Cansun, Can Alp"]
[Black "Lomsadze, Davit"]
[Result "1/2-1/2"]
[ECO "C76"]
[WhiteElo "2121"]
[BlackElo "2292"]
[Annotator "NA"]
[PlyCount "34"]
[EventDate "2019.06.24"]
[EventType "swiss"]
[EventCountry "TUR"]
[SourceTitle "playchess.com"]
[Source "ChessBase"]
[SourceQuality "1"]
[TimeControl "5400+30"]

1. e4 {[%emt 0:00:30]} e5 {[%emt 0:04:30]} 2. Nf3 {[%emt 0:00:30]} Nc6 {[%emt 0:00:00]} 3. Bb5 {[%emt 0:00:00]} a6 {[%emt 0:06:00]} 4. Ba4 {[%emt 0:00:00]} d6 {[%emt 0:00:30]} 5. c3 {[%emt 0:00:30]} Bd7 {[%emt 0:00:30]} 6. d4 {[%emt 0:00:00]} g6 {[%emt 0:00:00]} 7. O-O {[%emt 0:01:00]} Bg7 {[%emt 0:01:00]} 8. Be3 {[%emt 0:03:30]} Nf6 {[%emt 0:02:30]} 9. dxe5 {[%emt 0:02:30]} Nxe5 {[%emt 0:00:30]} 10. Nxe5 {[%emt 0:03:30]} dxe5 {[%emt 0:00:00]} 11. Bxd7+ {[%emt 0:00:30]} Qxd7 {[%emt 0:00:00]} 12. Qxd7+ {[%emt 0:02:30]} Kxd7 {[%emt 0:00:30]} 13. f3 {[%emt 0:01:30]} Ke6 {[%emt 0:00:30]} 14. Nd2 {[%emt 0:00:30]} Rhd8 {[%emt 0:00:00]} 15. a4 {[%emt 0:07:30]} a5 {[%emt 0:00:00]} 16. Nc4 {[%emt 0:08:30]} Ne8 {[%emt 0:01:30]} 17. Rfd1 {[%emt 0:01:30]} Rxd1+ {[%emt 0:00:30]} 1/2-1/2

[Event "7th Cesme Open-A 2019"]
[Site "Cesme"]
[Date "2019.06.30"]
[Round "9"]
[White "Caputcuoglu, Zeki Berke"]
[Black "Guliev, Logman"]
[Result "0-1"]
[ECO "E11"]
[WhiteElo "2097"]
[BlackElo "2320"]
[Annotator "NA"]
[PlyCount "128"]
[EventDate "2019.06.24"]
[EventType "swiss"]
[EventCountry "TUR"]
[SourceTitle "playchess.com"]
[Source "ChessBase"]
[SourceQuality "1"]
[TimeControl "5400+30"]

1. Nf3 {[%emt 0:00:30]} Nf6 {[%emt 0:02:30]} 2. d4 {[%emt 0:00:30]} e6 {[%emt 0:00:00]} 3. c4 {[%emt 0:00:00]} Bb4+ {[%emt 0:00:00]} 4. Nbd2 {[%emt 0:00:00]} b6 {[%emt 0:00:30]} 5. a3 {[%emt 0:00:30]} Bxd2+ {[%emt 0:00:00]} 6. Qxd2 {[%emt 0:00:30]} Bb7 {[%emt 0:00:00]} 7. g3 {[%emt 0:00:00]} O-O {[%emt 0:00:30]} 8. Bg2 {[%emt 0:01:00]} d6 {[%emt 0:00:00]} 9. O-O {[%emt 0:00:30]} Nbd7 {[%emt 0:00:00]} 10. b4 {[%emt 0:00:30]} a5 {[%emt 0:00:30]} 11. Bb2 {[%emt 0:00:30]} Be4 {[%emt 0:01:30]} 12. Rfd1 {[%emt 0:06:30]} Qe7 {[%emt 0:00:30]} 13. Qc3 {[%emt 0:04:30]} Rfe8 {[%emt 0:06:30]} 14. Bf1 {[%emt 0:04:30]} h6 {[%emt 0:05:30]} 15. Nd2 {[%emt 0:01:30]} Bb7 {[%emt 0:01:30]} 16. f3 {[%emt 0:03:30]} c5 {[%emt 0:06:30]} 17. e4 {[%emt 0:08:30]} d5 {[%emt 0:07:30]} 18. e5 {[%emt 0:08:30]} Nh7 {[%emt 0:06:30]} 19. bxc5 {[%emt 0:02:30]} bxc5 {[%emt 0:00:30]} 20. cxd5 {[%emt 0:00:30]} Bxd5 {[%emt 0:00:30]} 21. Bc4 {[%emt 0:06:30]} Bb7 {[%emt 0:05:30]} 22. Qe3 {[%emt 0:13:30]} Rec8 {[%emt 0:10:30]} 23. Bb5 {[%emt 0:03:30]} Nb6 {[%emt 0:03:30]} 24. Rac1 {[%emt 0:06:30]} Nd5 {[%emt 0:10:30]} 25. Qd3 {[%emt 0:01:30]} cxd4 {[%emt 0:09:30]} 26. Bxd4 {[%emt 0:00:30]} Ng5 {[%emt 0:02:41]} 27. h4 {[%emt 0:05:30]} Nh3+ {[%emt 0:06:20]} 28. Kh2 {[%emt 0:00:30]} Nhf4 {[%emt 0:00:30]} 29. Qf1 {[%emt 0:02:03]} Ng6 {[%emt 0:00:32]} 30. Ne4 {[%emt 0:05:26]} Rxc1 {[%emt 0:05:05]} 31. Rxc1 {[%emt 0:00:10]} Rc8 {[%emt 0:02:43]} 32. h5 {[%emt 0:06:20]} Nf8 {[%emt 0:00:35]} 33. Bc5 {[%emt 0:00:40]} Qd8 {[%emt 0:01:50]} 34. Nd6 {[%emt 0:02:38]} Rc7 {[%emt 0:00:01]} 35. Nxb7 {[%emt 0:04:56]} Rxb7 {[%emt 0:00:01]} 36. f4 {[%emt 0:00:55]} Nc3 {[%emt 0:03:07]} 37. Rxc3 {[%emt 0:01:28]} Qd2+ {[%emt 0:01:01]} 38. Qg2 {[%emt 0:00:00]} Qxc3 {[%emt 0:00:00]} 39. Qxb7 {[%emt 0:00:10]} Qxc5 {[%emt 0:00:16]} 40. Be8 {[%emt 0:00:09]} Qc2+ {[%emt 0:00:45]} 41. Qg2 {[%emt 0:01:08]} Qd1 {[%emt 0:01:01]} 42. g4 {[%emt 0:01:06]} Qd4 {[%emt 0:01:32]} 43. Qf3 {[%emt 0:00:26]} g6 {[%emt 0:00:22]} 44. Kh3 {[%emt 0:01:07]} Kg7 {[%emt 0:00:04]} 45. g5 {[%emt 0:00:14]} gxh5 {[%emt 0:02:15]} 46. gxh6+ {[%emt 0:00:28]} Kxh6 {[%emt 0:00:29]} 47. Qg3 {[%emt 0:00:32]} Ng6 {[%emt 0:00:24]} 48. Qg5+ {[%emt 0:00:29]} Kh7 {[%emt 0:00:24]} 49. Bxf7 {[%emt 0:00:45]} Nxf4+ {[%emt 0:00:17]} 50. Kh4 {[%emt 0:00:17]} Qf2+ {[%emt 0:00:40]} 51. Qg3 {[%emt 0:00:15]} Ng2+ {[%emt 0:00:41]} 52. Kh3 {[%emt 0:00:00]} Qxf7 {[%emt 0:00:00]} 53. Qxg2 {[%emt 0:00:00]} Qf5+ {[%emt 0:00:00]} 54. Kh4 {[%emt 0:00:00]} Qf4+ {[%emt 0:00:00]} 55. Kh3 {[%emt 0:00:00]} Qxe5 {[%emt 0:00:15]} 56. Qb7+ {[%emt 0:00:00]} Kg6 {[%emt 0:00:30]} 57. Qc8 {[%emt 0:00:17]} Qf5+ {[%emt 0:00:30]} 58. Kh2 {[%emt 0:00:30]} h4 {[%emt 0:00:40]} 59. Qg8+ {[%emt 0:00:17]} Kh5 {[%emt 0:00:16]} 60. Qh8+ {[%emt 0:00:19]} Kg4 {[%emt 0:00:07]} 61. Qg8+ {[%emt 0:00:23]} Kf3 {[%emt 0:01:10]} 62. Qg2+ {[%emt 0:01:20]} Ke3 {[%emt 0:00:07]} 63. Qc6 {[%emt 0:00:02]} Qf2+ {[%emt 0:00:30]} 64. Kh1 {[%emt 0:00:00]} Qf3+ {[%emt 0:00:00]} 0-1

[Event "7th Cesme Open-A 2019"]
[Site "Cesme"]
[Date "2019.06.30"]
[Round "9"]
[White "Rzayev, Askar Aliakbar"]
[Black "Aydincelebi, Kagan"]
[Result "0-1"]
[ECO "B22"]
[WhiteElo "2089"]
[BlackElo "2258"]
[Annotator "NA"]
[PlyCount "138"]
[EventDate "2019.06.24"]
[EventType "swiss"]
[EventCountry "TUR"]
[SourceTitle "playchess.com"]
[Source "ChessBase"]
[SourceQuality "1"]
[TimeControl "5400+30"]

1. e4 {[%emt 0:05:30]} c5 {[%emt 0:00:30]} 2. c3 {[%emt 0:00:00]} d5 {[%emt 0:00:00]} 3. exd5 {[%emt 0:01:00]} Qxd5 {[%emt 0:00:00]} 4. d4 {[%emt 0:00:30]} Nc6 {[%emt 0:00:30]} 5. Nf3 {[%emt 0:00:00]} Bf5 {[%emt 0:00:00]} 6. Be3 {[%emt 0:01:00]} cxd4 {[%emt 0:00:00]} 7. cxd4 {[%emt 0:00:30]} Bxb1 {[%emt 0:00:30]} 8. Rxb1 {[%emt 0:04:30]} Nf6 {[%emt 0:00:30]} 9. Qa4 {[%emt 0:00:30]} a6 {[%emt 0:05:30]} 10. b4 {[%emt 0:08:30]} b5 {[%emt 0:00:30]} 11. Qc2 {[%emt 0:01:30]} e6 {[%emt 0:07:30]} 12. a3 {[%emt 0:00:30]} Bd6 {[%emt 0:01:30]} 13. Bd3 {[%emt 0:04:30]} h6 {[%emt 0:00:30]} 14. O-O {[%emt 0:05:30]} O-O {[%emt 0:01:30]} 15. Rfc1 {[%emt 0:19:30]} Rac8 {[%emt 0:03:30]} 16. Qe2 {[%emt 0:02:30]} Rfd8 {[%emt 0:06:30]} 17. g3 {[%emt 0:05:30]} Rb8 {[%emt 0:07:30]} 18. Bc2 {[%emt 0:06:30]} a5 {[%emt 0:10:30]} 19. Bb3 {[%emt 0:02:30]} Qe4 {[%emt 0:01:30]} 20. Bc2 {[%emt 0:00:30]} Qg4 {[%emt 0:00:30]} 21. Bd1 {[%emt 0:01:30]} Ne7 {[%emt 0:02:30]} 22. Ne5 {[%emt 0:02:30]} Qxe2 {[%emt 0:01:30]} 23. Bxe2 {[%emt 0:00:30]} axb4 {[%emt 0:00:30]} 24. axb4 {[%emt 0:00:00]} Nfd5 {[%emt 0:00:30]} 25. Bd2 {[%emt 0:02:00]} Rb6 {[%emt 0:03:30]} 26. Bf3 {[%emt 0:05:30]} Ra6 {[%emt 0:01:30]} 27. Rb2 {[%emt 0:02:17]} Ra4 {[%emt 0:05:30]} 28. Bd1 {[%emt 0:02:03]} Ra3 {[%emt 0:02:30]} 29. Be2 {[%emt 0:00:27]} Rb8 {[%emt 0:07:30]} 30. Nd7 {[%emt 0:03:23]} Rb7 {[%emt 0:00:30]} 31. Nc5 {[%emt 0:00:05]} Bxc5 {[%emt 0:01:30]} 32. Rxc5 {[%emt 0:02:20]} Nf5 {[%emt 0:00:30]} 33. Bxb5 {[%emt 0:06:06]} Nxd4 {[%emt 0:00:00]} 34. Bc6 {[%emt 0:00:33]} Nxc6 {[%emt 0:00:00]} 35. Rxc6 {[%emt 0:00:04]} Rb5 {[%emt 0:01:30]} 36. Rc5 {[%emt 0:00:33]} Rxc5 {[%emt 0:00:30]} 37. bxc5 {[%emt 0:00:04]} Ra6 {[%emt 0:00:30]} 38. Rb8+ {[%emt 0:01:12]} Kh7 {[%emt 0:00:30]} 39. Rc8 {[%emt 0:00:04]} Kg6 {[%emt 0:00:30]} 40. Kg2 {[%emt 0:00:24]} Ra2 {[%emt 0:02:30]} 41. Be1 {[%emt 0:01:53]} Re2 {[%emt 0:01:30]} 42. Ba5 {[%emt 0:00:54]} Rc2 {[%emt 0:01:30]} 43. Kf3 {[%emt 0:00:26]} f5 {[%emt 0:00:30]} 44. Rc6 {[%emt 0:04:44]} Kf7 {[%emt 0:00:30]} 45. Bc7 {[%emt 0:00:56]} Ne7 {[%emt 0:00:30]} 46. Ra6 {[%emt 0:00:46]} Rxc5 {[%emt 0:00:30]} 47. Ra7 {[%emt 0:00:14]} Rc3+ {[%emt 0:00:30]} 48. Kg2 {[%emt 0:00:06]} Nc6 {[%emt 0:01:30]} 49. Ba5+ {[%emt 0:01:21]} Nxa7 {[%emt 0:00:30]} 50. Bxc3 {[%emt 0:00:30]} Nc6 {[%emt 0:00:00]} 51. f4 {[%emt 0:00:03]} g6 {[%emt 0:00:00]} 52. Kf3 {[%emt 0:00:30]} Ke7 {[%emt 0:00:00]} 53. h3 {[%emt 0:00:00]} Kd6 {[%emt 0:00:00]} 54. Ke3 {[%emt 0:00:41]} Kd5 {[%emt 0:00:00]} 55. g4 {[%emt 0:00:39]} Kc4 {[%emt 0:00:00]} 56. Bg7 {[%emt 0:00:44]} h5 {[%emt 0:00:30]} 57. gxh5 {[%emt 0:00:10]} gxh5 {[%emt 0:00:00]} 58. Kf3 {[%emt 0:00:05]} Kd3 {[%emt 0:00:00]} 59. Kg3 {[%emt 0:00:43]} Ke4 {[%emt 0:00:30]} 60. Bh6 {[%emt 0:00:01]} Nd4 {[%emt 0:00:30]} 61. Kh4 {[%emt 0:01:27]} Ne2 {[%emt 0:00:30]} 62. Kxh5 {[%emt 0:00:30]} Nxf4+ {[%emt 0:00:30]} 63. Kh4 {[%emt 0:00:00]} e5 {[%emt 0:00:30]} 64. Bg7 {[%emt 0:00:08]} Ne6 {[%emt 0:00:30]} 65. Bf6 {[%emt 0:00:38]} Kf4 {[%emt 0:00:30]} 66. Kh5 {[%emt 0:01:10]} e4 {[%emt 0:00:00]} 67. Kg6 {[%emt 0:00:12]} e3 {[%emt 0:00:00]} 68. h4 {[%emt 0:00:07]} Kg4 {[%emt 0:00:30]} 69. Bc3 {[%emt 0:01:34]} Nf4+ {[%emt 0:00:30]} 0-1